[Event "Titled Tuesday Blitz July 25 Early 2023"]
[White "Bok, Benjamin"]
[Black "Dvirnyy, Danyyil"]
[WhiteFideId "1017063"]
[BlackFideId "817570"]
[WhiteElo "2960"]
[BlackElo "2772"]
[Result "1-0"]
[Round "10"]
[TimeControl "180+2"]
[Date "2023.07.25"]
[WhiteClock "0:00:03"]
[BlackClock "0:00:00"]
[Board "18"]

1. d4 {[%clk 0:03:00]}  d6 {[%clk 0:02:58]} 2. Nf3 {[%clk 0:03:00]}  Nf6 {[%clk 0:02:58]} 3. c4 {[%clk 0:03:00]}  g6 {[%clk 0:02:55]} 4. g3 {[%clk 0:03:00]}  Bg7 {[%clk 0:02:55]} 5. Bg2 {[%clk 0:03:01]}  O-O {[%clk 0:02:55]} 6. Nc3 {[%clk 0:03:01]}  c5 {[%clk 0:02:56]} 7. O-O {[%clk 0:03:01]}  Nc6 {[%clk 0:02:55]} 8. dxc5 {[%clk 0:03:00]}  dxc5 {[%clk 0:02:55]} 9. Bf4 {[%clk 0:03:00]}  Nh5 {[%clk 0:02:55]} 10. Be3 {[%clk 0:02:59]}  Bxc3 {[%clk 0:02:41]} 11. bxc3 {[%clk 0:02:58]}  b6 {[%clk 0:02:39]} 12. Ne5 {[%clk 0:02:49]}  Nxe5 {[%clk 0:02:39]} 13. Bxa8 {[%clk 0:02:49]}  Bh3 {[%clk 0:02:37]} 14. Qxd8 {[%clk 0:02:39]}  Rxd8 {[%clk 0:02:38]} 15. Bg2 {[%clk 0:02:39]}  Bxg2 {[%clk 0:02:35]} 16. Kxg2 {[%clk 0:02:40]}  Nxc4 {[%clk 0:02:36]} 17. Rad1 {[%clk 0:02:38]}  Rd6 {[%clk 0:02:30]} 18. Rxd6 {[%clk 0:02:10]}  exd6 {[%clk 0:02:30]} 19. Rd1 {[%clk 0:02:10]}  Kf8 {[%clk 0:02:26]} 20. Bg5 {[%clk 0:01:54]}  Ke8 {[%clk 0:01:43]} 21. g4 {[%clk 0:01:24]}  Ng7 {[%clk 0:01:42]} 22. Rd3 {[%clk 0:01:24]}  Ne6 {[%clk 0:01:40]} 23. Bc1 {[%clk 0:01:21]}  Ne5 {[%clk 0:00:58]} 24. Rh3 {[%clk 0:00:38]}  Nxg4 {[%clk 0:00:57]} 25. Rxh7 {[%clk 0:00:38]}  a5 {[%clk 0:00:49]} 26. Rh8+ {[%clk 0:00:36]}  Kd7 {[%clk 0:00:48]} 27. f4 {[%clk 0:00:27]}  Nf6 {[%clk 0:00:35]} 28. Kf3 {[%clk 0:00:25]}  d5 {[%clk 0:00:33]} 29. e3 {[%clk 0:00:14]}  Ng7 {[%clk 0:00:10]} 30. Rf8 {[%clk 0:00:11]}  Ke7 {[%clk 0:00:10]} 31. Rb8 {[%clk 0:00:10]}  Nd7 {[%clk 0:00:11]} 32. Ra8 {[%clk 0:00:09]}  f5 {[%clk 0:00:11]} 33. Ra7 {[%clk 0:00:08]}  Ne8 {[%clk 0:00:09]} 34. Bb2 {[%clk 0:00:06]}  Nd6 {[%clk 0:00:09]} 35. Ra8 {[%clk 0:00:07]}  Nc4 {[%clk 0:00:09]} 36. Bc1 {[%clk 0:00:07]}  Nd6 {[%clk 0:00:09]} 37. h4 {[%clk 0:00:07]}  Ne4 {[%clk 0:00:07]} 38. Bb2 {[%clk 0:00:07]}  Nd2+ {[%clk 0:00:07]} 39. Ke2 {[%clk 0:00:07]}  Nc4 {[%clk 0:00:07]} 40. Bc1 {[%clk 0:00:07]}  Nd6 {[%clk 0:00:07]} 41. Rg8 {[%clk 0:00:06]}  Kf7 {[%clk 0:00:08]} 42. Rd8 {[%clk 0:00:06]}  Ke7 {[%clk 0:00:08]} 43. Ra8 {[%clk 0:00:07]}  Ne4 {[%clk 0:00:08]} 44. Bb2 {[%clk 0:00:07]}  Nd6 {[%clk 0:00:08]} 45. Rh8 {[%clk 0:00:07]}  Nc4 {[%clk 0:00:08]} 46. Bc1 {[%clk 0:00:07]}  Nf6 {[%clk 0:00:09]} 47. Rb8 {[%clk 0:00:06]}  Ne4 {[%clk 0:00:09]} 48. Kd3 {[%clk 0:00:05]}  Nf2+ {[%clk 0:00:08]} 49. Kc2 {[%clk 0:00:05]}  Ne4 {[%clk 0:00:09]} 50. Rb7+ {[%clk 0:00:05]}  Kf6 {[%clk 0:00:10]} 51. Rd7 {[%clk 0:00:04]}  Ke6 {[%clk 0:00:10]} 52. Rd8 {[%clk 0:00:05]}  Nf6 {[%clk 0:00:07]} 53. Rb8 {[%clk 0:00:04]}  Nd7 {[%clk 0:00:07]} 54. Rg8 {[%clk 0:00:04]}  Kf7 {[%clk 0:00:07]} 55. Rh8 {[%clk 0:00:04]}  Nf6 {[%clk 0:00:07]} 56. a4 {[%clk 0:00:03]}  Ke6 {[%clk 0:00:07]} 57. Rf8 {[%clk 0:00:03]}  Ke7 {[%clk 0:00:07]} 58. Ra8 {[%clk 0:00:02]}  Kf7 {[%clk 0:00:07]} 59. Ra7+ {[%clk 0:00:02]}  Ke6 {[%clk 0:00:07]} 60. Rg7 {[%clk 0:00:02]}  Nh5 {[%clk 0:00:06]} 61. Rxg6+ {[%clk 0:00:02]}  Nf6 {[%clk 0:00:05]} 62. h5 {[%clk 0:00:03]}  Kf7 {[%clk 0:00:06]} 63. Rg5 {[%clk 0:00:03]}  Nd6 {[%clk 0:00:05]} 64. h6 {[%clk 0:00:03]}  Kf8 {[%clk 0:00:03]} 65. Rg6 {[%clk 0:00:02]}  Kf7 {[%clk 0:00:02]} 66. Rg7+ {[%clk 0:00:02]}  Kf8 {[%clk 0:00:02]} 67. Ra7 {[%clk 0:00:02]}  Kg8 {[%clk 0:00:01]} 68. Rg7+ {[%clk 0:00:02]}  Kh8 {[%clk 0:00:01]} 69. Rg6 {[%clk 0:00:02]}  Nde8 {[%clk 0:00:01]} 70. Bd2 {[%clk 0:00:02]}  Kh7 {[%clk 0:00:02]} 71. Rg5 {[%clk 0:00:02]}  Nd6 {[%clk 0:00:02]} 72. Be1 {[%clk 0:00:02]}  Kxh6 {[%clk 0:00:02]} 73. Bh4 {[%clk 0:00:02]}  Nfe4 {[%clk 0:00:02]} 74. Rg8 {[%clk 0:00:02]}  Kh5 {[%clk 0:00:02]} 75. Be7 {[%clk 0:00:02]}  Nc4 {[%clk 0:00:01]} 76. Kd3 {[%clk 0:00:02]}  Nb2+ {[%clk 0:00:01]} 77. Kc2 {[%clk 0:00:03]}  Nxa4 {[%clk 0:00:02]} 78. Rf8 {[%clk 0:00:03]}  Kg4 {[%clk 0:00:02]} 79. Bd8 {[%clk 0:00:03]}  b5 {[%clk 0:00:01]} 80. Bxa5 {[%clk 0:00:02]}  b4 {[%clk 0:00:01]} 81. cxb4 {[%clk 0:00:02]}  cxb4 {[%clk 0:00:02]} 82. Bxb4 {[%clk 0:00:03]}  Nb6 {[%clk 0:00:03]} 83. Bc3 {[%clk 0:00:03]}  Nc4 {[%clk 0:00:04]} 84. Bd4 {[%clk 0:00:03]}  Kf3 {[%clk 0:00:04]} 85. Rh8 {[%clk 0:00:03]}  Nxe3+ {[%clk 0:00:04]} 86. Kd3 {[%clk 0:00:03]}  Ng2 {[%clk 0:00:04]} 87. Rh3+ {[%clk 0:00:03]}  Kg4 {[%clk 0:00:04]} 88. Rh8 {[%clk 0:00:03]}  Nxf4+ {[%clk 0:00:04]} 89. Ke3 {[%clk 0:00:03]}  Ne6 {[%clk 0:00:05]} 90. Be5 {[%clk 0:00:03]}  f4+ {[%clk 0:00:05]} 91. Kd3 {[%clk 0:00:04]}  Kf5 {[%clk 0:00:05]} 92. Bb8 {[%clk 0:00:04]}  Nf2+ {[%clk 0:00:06]} 93. Ke2 {[%clk 0:00:04]}  Ng4 {[%clk 0:00:07]} 94. Rh5+ {[%clk 0:00:04]}  Ke4 {[%clk 0:00:07]} 95. Rh4 {[%clk 0:00:04]}  f3+ {[%clk 0:00:07]} 96. Ke1 {[%clk 0:00:04]}  Kf5 {[%clk 0:00:08]} 97. Rh5+ {[%clk 0:00:04]}  Ng5 {[%clk 0:00:08]} 98. Bc7 {[%clk 0:00:04]}  d4 {[%clk 0:00:08]} 99. Bd8 {[%clk 0:00:04]}  f2+ {[%clk 0:00:07]} 100. Kf1 {[%clk 0:00:04]}  Nf6 {[%clk 0:00:07]} 101. Bxf6 {[%clk 0:00:03]}  Kxf6 {[%clk 0:00:08]} 102. Kxf2 {[%clk 0:00:04]}  Kg6 {[%clk 0:00:07]} 103. Rh8 {[%clk 0:00:04]}  Kf5 {[%clk 0:00:08]} 104. Ke2 {[%clk 0:00:04]}  Ke4 {[%clk 0:00:08]} 105. Rh4+ {[%clk 0:00:04]}  Ke5 {[%clk 0:00:08]} 106. Rh5 {[%clk 0:00:04]}  Kf4 {[%clk 0:00:07]} 107. Kd3 {[%clk 0:00:04]}  Nf3 {[%clk 0:00:08]} 108. Rh8 {[%clk 0:00:04]}  Ke5 {[%clk 0:00:07]} 109. Re8+ {[%clk 0:00:03]}  Kd5 {[%clk 0:00:07]} 110. Rd8+ {[%clk 0:00:04]}  Kc5 {[%clk 0:00:08]} 111. Re8 {[%clk 0:00:03]}  Kd5 {[%clk 0:00:08]} 112. Rd8+ {[%clk 0:00:04]}  Kc5 {[%clk 0:00:09]} 113. Rh8 {[%clk 0:00:04]}  Kd5 {[%clk 0:00:08]} 114. Rh5+ {[%clk 0:00:03]}  Ne5+ {[%clk 0:00:09]} 115. Kd2 {[%clk 0:00:04]}  Ke4 {[%clk 0:00:09]} 116. Rh4+ {[%clk 0:00:04]}  Kd5 {[%clk 0:00:10]} 117. Ke2 {[%clk 0:00:05]}  Ke6 {[%clk 0:00:09]} 118. Rh8 {[%clk 0:00:04]}  Kd5 {[%clk 0:00:09]} 119. Ra8 {[%clk 0:00:04]}  Ke4 {[%clk 0:00:10]} 120. Re8 {[%clk 0:00:04]}  Kd5 {[%clk 0:00:10]} 121. Rh8 {[%clk 0:00:03]}  Ke4 {[%clk 0:00:10]} 122. Rh4+ {[%clk 0:00:03]}  Kd5 {[%clk 0:00:11]} 123. Rf4 {[%clk 0:00:03]}  Kc5 {[%clk 0:00:10]} 124. Kd2 {[%clk 0:00:03]}  Kd5 {[%clk 0:00:10]} 125. Rf8 {[%clk 0:00:03]}  Nc4+ {[%clk 0:00:10]} 126. Kd1 {[%clk 0:00:03]}  Ke4 {[%clk 0:00:10]} 127. Ke2 {[%clk 0:00:03]}  d3+ {[%clk 0:00:10]} 128. Kd1 {[%clk 0:00:03]}  Ne3+ {[%clk 0:00:10]} 129. Kd2 {[%clk 0:00:03]}  Nc4+ {[%clk 0:00:10]} 130. Kc3 {[%clk 0:00:03]}  Ne5 {[%clk 0:00:09]} 131. Re8 {[%clk 0:00:03]}  Kd5 {[%clk 0:00:09]} 132. Re7 {[%clk 0:00:03]}  Kd6 {[%clk 0:00:09]} 133. Ra7 {[%clk 0:00:03]}  Kd5 {[%clk 0:00:09]} 134. Ra4 {[%clk 0:00:03]}  Ke6 {[%clk 0:00:07]} 135. Rd4 {[%clk 0:00:03]}  Kf5 {[%clk 0:00:07]} 136. Kb3 {[%clk 0:00:03]}  Ke6 {[%clk 0:00:06]} 137. Kb2 {[%clk 0:00:02]}  Kf5 {[%clk 0:00:07]} 138. Kc3 {[%clk 0:00:02]}  Ke6 {[%clk 0:00:07]} 139. Rf4 {[%clk 0:00:03]}  Kd5 {[%clk 0:00:07]} 140. Rh4 {[%clk 0:00:03]}  Ke6 {[%clk 0:00:07]} 141. Rd4 {[%clk 0:00:03]}  Kf5 {[%clk 0:00:07]} 142. Ra4 {[%clk 0:00:03]}  Ke6 {[%clk 0:00:06]} 143. Ra5 {[%clk 0:00:04]}  Kd6 {[%clk 0:00:06]} 144. Rb5 {[%clk 0:00:04]}  Ke6 {[%clk 0:00:06]} 145. Rb8 {[%clk 0:00:03]}  Kd5 {[%clk 0:00:06]} 146. Rb4 {[%clk 0:00:03]}  Ke6 {[%clk 0:00:06]} 147. Rb5 {[%clk 0:00:04]}  Kd6 {[%clk 0:00:04]} 148. Kd4 {[%clk 0:00:04]}  d2 {[%clk 0:00:03]} 149. Rb1 {[%clk 0:00:04]}  Ke6 {[%clk 0:00:02]} 150. Rd1 {[%clk 0:00:03]}  Kf5 {[%clk 0:00:01]} 151. Kc3 {[%clk 0:00:02]}  Nf3 {[%clk 0:00:02]} 152. Kd3 {[%clk 0:00:03]}  Kf4 {[%clk 0:00:02]} 153. Ke2 {[%clk 0:00:03]}  Ke4 {[%clk 0:00:00]} 154. Ra1 {[%clk 0:00:03]} 1-0


[Site "https://www.chess.com"]

[Event "Titled Tuesday Blitz July 25 Early 2023"]
[White "Hovhannisyan, Robert"]
[Black "Morefield, Jason"]
[WhiteFideId "13302507"]
[BlackFideId "30920825"]
[WhiteElo "2953"]
[BlackElo "2757"]
[Result "1-0"]
[Round "10"]
[TimeControl "180+2"]
[Date "2023.07.25"]
[WhiteClock "0:00:07"]
[BlackClock "0:00:01"]
[Board "19"]

1. e4 {[%clk 0:03:00]}  e5 {[%clk 0:02:57]} 2. Nf3 {[%clk 0:03:01]}  Nc6 {[%clk 0:02:58]} 3. Nc3 {[%clk 0:03:01]}  Nf6 {[%clk 0:02:58]} 4. d4 {[%clk 0:03:02]}  exd4 {[%clk 0:02:59]} 5. Nxd4 {[%clk 0:03:03]}  Bb4 {[%clk 0:02:58]} 6. Nxc6 {[%clk 0:03:03]}  bxc6 {[%clk 0:02:59]} 7. Bd3 {[%clk 0:03:04]}  O-O {[%clk 0:03:00]} 8. O-O {[%clk 0:03:03]}  d5 {[%clk 0:03:00]} 9. exd5 {[%clk 0:03:04]}  Bg4 {[%clk 0:03:00]} 10. f3 {[%clk 0:03:03]}  Bh5 {[%clk 0:03:00]} 11. Bg5 {[%clk 0:03:00]}  Bxc3 {[%clk 0:02:45]} 12. bxc3 {[%clk 0:02:58]}  cxd5 {[%clk 0:02:44]} 13. c4 {[%clk 0:02:52]}  c6 {[%clk 0:02:35]} 14. cxd5 {[%clk 0:02:51]}  cxd5 {[%clk 0:02:36]} 15. Qd2 {[%clk 0:02:45]}  h6 {[%clk 0:02:31]} 16. Bh4 {[%clk 0:02:41]}  Qb6+ {[%clk 0:02:25]} 17. Bf2 {[%clk 0:02:40]}  Qc6 {[%clk 0:02:25]} 18. Bd4 {[%clk 0:02:39]}  Bg6 {[%clk 0:02:25]} 19. Bxf6 {[%clk 0:02:29]}  Qxf6 {[%clk 0:02:04]} 20. Bxg6 {[%clk 0:02:29]}  Qxg6 {[%clk 0:02:04]} 21. Qxd5 {[%clk 0:02:27]}  Qxc2 {[%clk 0:02:03]} 22. Rac1 {[%clk 0:02:25]}  Qb2 {[%clk 0:01:59]} 23. Rb1 {[%clk 0:02:23]}  Qa3 {[%clk 0:01:54]} 24. Rfd1 {[%clk 0:02:18]}  Rab8 {[%clk 0:01:46]} 25. h4 {[%clk 0:02:05]}  Qe3+ {[%clk 0:01:40]} 26. Kh2 {[%clk 0:01:59]}  Qf4+ {[%clk 0:01:36]} 27. g3 {[%clk 0:01:55]}  Qe3 {[%clk 0:01:36]} 28. Kh3 {[%clk 0:01:36]}  Rxb1 {[%clk 0:01:29]} 29. Rxb1 {[%clk 0:01:36]}  Re8 {[%clk 0:01:25]} 30. Rb7 {[%clk 0:01:32]}  Re6 {[%clk 0:01:17]} 31. Rb8+ {[%clk 0:01:24]}  Re8 {[%clk 0:01:13]} 32. Rb7 {[%clk 0:01:18]}  Re6 {[%clk 0:01:03]} 33. Qf5 {[%clk 0:00:56]}  Re7 {[%clk 0:00:52]} 34. Rb8+ {[%clk 0:00:47]}  Re8 {[%clk 0:00:51]} 35. Qf4 {[%clk 0:00:37]}  Qe6+ {[%clk 0:00:46]} 36. g4 {[%clk 0:00:36]}  a6 {[%clk 0:00:44]} 37. a4 {[%clk 0:00:33]}  Rxb8 {[%clk 0:00:40]} 38. Qxb8+ {[%clk 0:00:34]}  Kh7 {[%clk 0:00:40]} 39. Qb1+ {[%clk 0:00:32]}  g6 {[%clk 0:00:40]} 40. h5 {[%clk 0:00:32]}  Qd5 {[%clk 0:00:35]} 41. hxg6+ {[%clk 0:00:32]}  fxg6 {[%clk 0:00:35]} 42. Kg2 {[%clk 0:00:23]}  Qd2+ {[%clk 0:00:34]} 43. Kg3 {[%clk 0:00:23]}  Qd6+ {[%clk 0:00:34]} 44. f4 {[%clk 0:00:24]}  Qc6 {[%clk 0:00:32]} 45. Qb3 {[%clk 0:00:22]}  Kg7 {[%clk 0:00:30]} 46. a5 {[%clk 0:00:22]}  g5 {[%clk 0:00:24]} 47. f5 {[%clk 0:00:18]}  Qd6+ {[%clk 0:00:19]} 48. Kf3 {[%clk 0:00:18]}  Qc6+ {[%clk 0:00:19]} 49. Ke3 {[%clk 0:00:17]}  Qc5+ {[%clk 0:00:19]} 50. Ke4 {[%clk 0:00:16]}  Qxa5 {[%clk 0:00:17]} 51. Qb7+ {[%clk 0:00:16]}  Kf8 {[%clk 0:00:17]} 52. Qb8+ {[%clk 0:00:13]}  Ke7 {[%clk 0:00:15]} 53. Qb7+ {[%clk 0:00:11]}  Kd8 {[%clk 0:00:14]} 54. Qb8+ {[%clk 0:00:10]}  Kd7 {[%clk 0:00:14]} 55. Qa7+ {[%clk 0:00:10]}  Qc7 {[%clk 0:00:11]} 56. Qxa6 {[%clk 0:00:06]}  Qf4+ {[%clk 0:00:11]} 57. Kd5 {[%clk 0:00:05]}  Qxg4 {[%clk 0:00:10]} 58. Qa7+ {[%clk 0:00:05]}  Kc8 {[%clk 0:00:05]} 59. Qa8+ {[%clk 0:00:05]}  Kc7 {[%clk 0:00:06]} 60. Qc6+ {[%clk 0:00:06]}  Kd8 {[%clk 0:00:06]} 61. Qd6+ {[%clk 0:00:06]}  Kc8 {[%clk 0:00:06]} 62. Qe6+ {[%clk 0:00:06]}  Kd8 {[%clk 0:00:06]} 63. Qf6+ {[%clk 0:00:07]}  Ke8 {[%clk 0:00:04]} 64. Qg6+ {[%clk 0:00:07]}  Kd8 {[%clk 0:00:04]} 65. Qg8+ {[%clk 0:00:07]}  Kd7 {[%clk 0:00:04]} 66. Qf7+ {[%clk 0:00:07]}  Kd8 {[%clk 0:00:05]} 67. Qf8+ {[%clk 0:00:07]}  Kd7 {[%clk 0:00:05]} 68. Qd6+ {[%clk 0:00:07]}  Ke8 {[%clk 0:00:05]} 69. Qc6+ {[%clk 0:00:07]}  Kd8 {[%clk 0:00:05]} 70. Qb6+ {[%clk 0:00:07]}  Ke8 {[%clk 0:00:05]} 71. Qb8+ {[%clk 0:00:07]}  Ke7 {[%clk 0:00:04]} 72. Qc7+ {[%clk 0:00:07]}  Kf6 {[%clk 0:00:03]} 73. Qe5+ {[%clk 0:00:06]}  Kf7 {[%clk 0:00:04]} 74. Qe6+ {[%clk 0:00:07]}  Kf8 {[%clk 0:00:04]} 75. Qxh6+ {[%clk 0:00:07]}  Ke8 {[%clk 0:00:03]} 76. Qe6+ {[%clk 0:00:08]}  Kf8 {[%clk 0:00:04]} 77. Qc8+ {[%clk 0:00:08]}  Kf7 {[%clk 0:00:04]} 78. Qd7+ {[%clk 0:00:08]}  Kf8 {[%clk 0:00:03]} 79. Ke6 {[%clk 0:00:05]}  Qe2+ {[%clk 0:00:02]} 80. Kf6 {[%clk 0:00:05]}  Qb2+ {[%clk 0:00:03]} 81. Kg6 {[%clk 0:00:05]}  Qe5 {[%clk 0:00:01]} 82. Qc8+ {[%clk 0:00:05]}  Qe8+ {[%clk 0:00:01]} 83. Qxe8+ {[%clk 0:00:05]}  Kxe8 {[%clk 0:00:02]} 84. Kg7 {[%clk 0:00:05]}  g4 {[%clk 0:00:02]} 85. f6 {[%clk 0:00:06]}  g3 {[%clk 0:00:01]} 86. f7+ {[%clk 0:00:07]} 1-0


[Site "https://www.chess.com"]

[Event "Titled Tuesday Blitz July 25 Early 2023"]
[White "Fiorito, Joaquin"]
[Black "Attacker_2006"]
[WhiteFideId "180173"]
[WhiteElo "2795"]
[BlackElo "2498"]
[Result "1-0"]
[Round "10"]
[TimeControl "180+2"]
[Date "2023.07.25"]
[WhiteClock "0:01:59"]
[BlackClock "0:00:58"]
[Board "22"]

1. d4 {[%clk 0:03:00]}  Nf6 {[%clk 0:02:53]} 2. Nc3 {[%clk 0:03:00]}  d5 {[%clk 0:02:52]} 3. Bf4 {[%clk 0:03:01]}  c5 {[%clk 0:02:49]} 4. e4 {[%clk 0:03:01]}  Nxe4 {[%clk 0:02:44]} 5. Bb5+ {[%clk 0:03:00]}  Bd7 {[%clk 0:02:42]} 6. Nxd5 {[%clk 0:03:00]}  Nd6 {[%clk 0:02:36]} 7. Bxd6 {[%clk 0:02:59]}  exd6 {[%clk 0:02:35]} 8. Qe2+ {[%clk 0:02:58]}  Be7 {[%clk 0:02:35]} 9. Bxd7+ {[%clk 0:02:57]}  Qxd7 {[%clk 0:02:16]} 10. O-O-O {[%clk 0:02:57]}  cxd4 {[%clk 0:02:08]} 11. Nf3 {[%clk 0:02:54]}  Nc6 {[%clk 0:02:07]} 12. Nxd4 {[%clk 0:02:48]}  Kd8 {[%clk 0:02:01]} 13. Qf3 {[%clk 0:02:32]}  Ne5 {[%clk 0:01:54]} 14. Qg3 {[%clk 0:02:30]}  g5 {[%clk 0:01:44]} 15. Rhe1 {[%clk 0:02:27]}  Rc8 {[%clk 0:01:39]} 16. Nxe7 {[%clk 0:02:24]}  Kxe7 {[%clk 0:01:33]} 17. Rxe5+ {[%clk 0:02:22]}  dxe5 {[%clk 0:01:33]} 18. Qxe5+ {[%clk 0:02:23]}  Kd8 {[%clk 0:01:30]} 19. Qxh8+ {[%clk 0:02:22]}  Kc7 {[%clk 0:01:31]} 20. Qe5+ {[%clk 0:02:23]}  Kb6 {[%clk 0:01:30]} 21. Nb3 {[%clk 0:02:18]}  Qb5 {[%clk 0:01:22]} 22. Rd6+ {[%clk 0:02:13]}  Rc6 {[%clk 0:01:21]} 23. Qxb5+ {[%clk 0:02:14]}  Kxb5 {[%clk 0:01:21]} 24. Nd4+ {[%clk 0:02:13]}  Kc5 {[%clk 0:01:22]} 25. Rxc6+ {[%clk 0:02:09]}  bxc6 {[%clk 0:01:15]} 26. Nf3 {[%clk 0:02:08]}  f6 {[%clk 0:01:13]} 27. Kd2 {[%clk 0:02:08]}  Kd5 {[%clk 0:01:14]} 28. Kd3 {[%clk 0:02:08]}  h5 {[%clk 0:01:14]} 29. c4+ {[%clk 0:02:06]}  Ke6 {[%clk 0:01:14]} 30. Kd4 {[%clk 0:02:06]}  Kf5 {[%clk 0:01:14]} 31. b4 {[%clk 0:02:02]}  Kf4 {[%clk 0:01:13]} 32. Ne1 {[%clk 0:02:01]}  h4 {[%clk 0:01:12]} 33. Nd3+ {[%clk 0:02:01]}  Kg4 {[%clk 0:01:12]} 34. h3+ {[%clk 0:02:00]}  Kf5 {[%clk 0:01:11]} 35. b5 {[%clk 0:02:00]}  cxb5 {[%clk 0:01:12]} 36. cxb5 {[%clk 0:02:01]}  g4 {[%clk 0:01:12]} 37. a4 {[%clk 0:02:00]}  Kg5 {[%clk 0:01:08]} 38. a5 {[%clk 0:02:00]}  f5 {[%clk 0:01:08]} 39. Ke5 {[%clk 0:01:58]}  g3 {[%clk 0:01:02]} 40. f4+ {[%clk 0:01:58]}  Kg6 {[%clk 0:00:58]} 41. b6 {[%clk 0:01:59]} 1-0


[Site "https://www.chess.com"]

[Event "Titled Tuesday Blitz July 25 Early 2023"]
[White "Galchenko, Matvey"]
[Black "Marek, Matyas"]
[WhiteFideId "24175480"]
[BlackFideId "335398"]
[WhiteElo "2892"]
[BlackElo "2711"]
[Result "1-0"]
[Round "10"]
[TimeControl "180+2"]
[Date "2023.07.25"]
[WhiteClock "0:02:24"]
[BlackClock "0:01:55"]
[Board "28"]

1. f4 {[%clk 0:02:53]}  Nf6 {[%clk 0:02:57]} 2. Nf3 {[%clk 0:02:53]}  g6 {[%clk 0:02:58]} 3. g3 {[%clk 0:02:53]}  Bg7 {[%clk 0:02:59]} 4. Bg2 {[%clk 0:02:54]}  O-O {[%clk 0:03:00]} 5. O-O {[%clk 0:02:54]}  d5 {[%clk 0:02:59]} 6. d3 {[%clk 0:02:55]}  c5 {[%clk 0:03:00]} 7. Nc3 {[%clk 0:02:56]}  Nc6 {[%clk 0:03:00]} 8. e4 {[%clk 0:02:56]}  dxe4 {[%clk 0:02:47]} 9. dxe4 {[%clk 0:02:57]}  Nd4 {[%clk 0:02:48]} 10. e5 {[%clk 0:02:57]}  Nxf3+ {[%clk 0:02:35]} 11. Qxf3 {[%clk 0:02:58]}  Nd7 {[%clk 0:02:34]} 12. Be3 {[%clk 0:02:58]}  e6 {[%clk 0:02:26]} 13. Rad1 {[%clk 0:02:57]}  Qc7 {[%clk 0:02:22]} 14. Rd2 {[%clk 0:02:44]}  a6 {[%clk 0:02:21]} 15. Rfd1 {[%clk 0:02:44]}  Nb6 {[%clk 0:02:15]} 16. b3 {[%clk 0:02:30]}  Bd7 {[%clk 0:02:06]} 17. Qxb7 {[%clk 0:02:26]}  Rfc8 {[%clk 0:01:55]} 18. Qxc7 {[%clk 0:02:24]} 1-0


[Site "https://www.chess.com"]

[Event "Titled Tuesday Blitz July 25 Early 2023"]
[White "Koshulyan, Egor A."]
[Black "Kushagra Mohan"]
[WhiteFideId "24237000"]
[BlackFideId "25033638"]
[WhiteElo "2708"]
[BlackElo "2851"]
[Result "0-1"]
[Round "10"]
[TimeControl "180+2"]
[Date "2023.07.25"]
[WhiteClock "0:00:14"]
[BlackClock "0:01:24"]
[Board "29"]

1. e4 {[%clk 0:03:00]}  e5 {[%clk 0:02:59]} 2. Nf3 {[%clk 0:03:01]}  Nc6 {[%clk 0:03:00]} 3. Bb5 {[%clk 0:02:59]}  a6 {[%clk 0:03:00]} 4. Ba4 {[%clk 0:02:59]}  Nf6 {[%clk 0:03:01]} 5. O-O {[%clk 0:02:59]}  Nxe4 {[%clk 0:03:01]} 6. d4 {[%clk 0:02:59]}  b5 {[%clk 0:03:02]} 7. Bb3 {[%clk 0:02:59]}  d5 {[%clk 0:03:03]} 8. dxe5 {[%clk 0:03:00]}  Be6 {[%clk 0:03:03]} 9. c3 {[%clk 0:02:59]}  Bc5 {[%clk 0:03:03]} 10. Nbd2 {[%clk 0:02:55]}  O-O {[%clk 0:03:03]} 11. Bc2 {[%clk 0:02:54]}  Nxf2 {[%clk 0:03:04]} 12. Rxf2 {[%clk 0:02:50]}  f6 {[%clk 0:03:04]} 13. exf6 {[%clk 0:02:46]}  Qxf6 {[%clk 0:03:03]} 14. Nb3 {[%clk 0:02:44]}  Bxf2+ {[%clk 0:03:01]} 15. Kxf2 {[%clk 0:02:45]}  Ne5 {[%clk 0:03:00]} 16. Kg1 {[%clk 0:02:29]}  Nxf3+ {[%clk 0:02:59]} 17. Qxf3 {[%clk 0:02:30]}  Qxf3 {[%clk 0:02:59]} 18. gxf3 {[%clk 0:02:31]}  Bh3 {[%clk 0:02:54]} 19. Kf2 {[%clk 0:02:16]}  Rae8 {[%clk 0:02:44]} 20. Nc5 {[%clk 0:01:51]}  Rf7 {[%clk 0:02:34]} 21. Bd2 {[%clk 0:01:22]}  Bg4 {[%clk 0:02:27]} 22. Bd1 {[%clk 0:01:21]}  Bxf3 {[%clk 0:02:25]} 23. Bxf3 {[%clk 0:01:22]}  Ref8 {[%clk 0:02:25]} 24. Rg1 {[%clk 0:00:26]}  Rxf3+ {[%clk 0:02:19]} 25. Ke2 {[%clk 0:00:27]}  Rf2+ {[%clk 0:02:13]} 26. Kd1 {[%clk 0:00:27]}  Rxh2 {[%clk 0:01:51]} 27. Ne6 {[%clk 0:00:20]}  Rff2 {[%clk 0:01:51]} 28. Rxg7+ {[%clk 0:00:19]}  Kh8 {[%clk 0:01:52]} 29. Be1 {[%clk 0:00:15]}  Rxb2 {[%clk 0:01:50]} 30. Kc1 {[%clk 0:00:15]}  Rxa2 {[%clk 0:01:48]} 31. Kb1 {[%clk 0:00:15]}  Rhb2+ {[%clk 0:01:27]} 32. Kc1 {[%clk 0:00:15]}  Re2 {[%clk 0:01:26]} 33. Re7 {[%clk 0:00:14]}  Rxe1# {[%clk 0:01:24]} 0-1


[Site "https://www.chess.com"]